bitfinex-derivatives/quotes_SOLF0:USTF0_20250409
["timestamp","ask_amount","ask_price","bid_price","bid_amount"]
[1744203688192,61.00403301,104.65,104.5,359.0]
[1744203688397,51.44403301,104.57,104.45,61.18]
[1744203688603,51.44403301,104.52,104.42,4.6752]
[1744203688808,51.44403301,104.52,104.41,367.63507504]
[1744203688809,51.44403301,104.45,104.41,316.19104203]
[1744203689100,102.88806602,104.42,104.35,1.66531081]
[1744203689305,51.44403301,104.39,104.28,1021.66237001]
[1744203689498,102.88806602,104.4,104.28,1021.66237001]
[1744203689499,51.44403301,104.32,104.28,1021.66237001]
[1744203689796,51.44403301,104.38,104.33,47.85]
[1744203690005,51.44403301,104.43,104.4,47.85]
[1744203690197,347.2405,104.42,104.41,94.07345306]
[1744203690395,0.06400028,104.43,104.42,4.5926]
[1744203690595,51.44403301,104.45,104.4,0.07124004]
[1744203690901,367.7848,104.54,104.45,93.82791884]
[1744203691102,367.7848,104.54,104.4,51.44403301]
[1744203691103,51.44403301,104.46,104.41,47.85]
[1744203691404,51.44403301,104.52,104.43,45.97791884]
[1744203691703,9.6436407,104.45,104.42,0.07101117]
[1744203691903,4.7848,104.54,104.44,93.82791884]
[1744203692098,51.44403301,104.53,104.42,45.97791884]
[1744203692297,9.5775,104.48,104.42,93.82791884]
[1744203692490,363.0,104.5,104.43,51.44403301]
[1744203692700,4.7848,104.54,104.48,51.44403301]
[1744203693002,372.4165,104.64,104.53,145.27195185]
[1744203693198,4.7906,104.69,104.61,47.85]
[1744203693401,9.5585,104.68,104.59,51.44403301]
[1744203693603,14.2071,104.69,104.64,93.82791884]
[1744203693805,0.0634875,104.66,104.64,0.0613763]
[1744203694602,0.0634875,104.66,104.46,378.1566]
[1744203694603,61.06752051,104.66,104.55,51.44403301]
[1744203694794,51.44403301,104.62,104.54,47.85]
[1744203694990,69.88,104.61,104.55,47.85]
[1744203695200,69.88,104.61,104.56,109.85]
[1744203695405,575.08,104.67,104.59,93.82791884]
[1744203695703,0.07349579,104.6,104.57,0.07247515]
[1744203695906,51.44403301,104.64,104.56,103.39661884]
[1744203696104,964.90180639,104.65,104.61,47.85]
[1744203696404,964.90180639,104.65,104.59,163.68791884]
[1744203696709,786.81859675,104.65,104.62,47.85]
[1744203697000,757.48669675,104.65,104.64,103.39001884]
[1744203697204,757.42535552,104.65,104.61,51.44403301]
[1744203697403,757.42535552,104.65,104.55,51.44403301]
[1744203697604,757.42535552,104.65,104.57,9.5682]
[1744203697807,51.51339004,104.64,104.55,51.44403301]
[1744203698005,51.51339004,104.64,104.52,71.78]
[1744203698304,51.51339004,104.64,104.5,410.44403301]
[1744203698305,51.44403301,104.64,104.54,51.44403301]
[1744203698501,51.44403301,104.63,104.52,51.44403301]
[1744203698702,51.44403301,104.59,104.5,359.0]
[1744203698900,71.78,104.58,104.48,51.44403301]
[1744203699304,71.78,104.58,104.5,51.44403301]
[1744203699503,71.78,104.58,104.48,410.44403301]
[1744203700204,9.5692,104.57,104.5,9.5742]
[1744203700405,0.0643639,104.54,104.52,0.06304279]
[1744203700805,0.0643639,104.54,104.52,9.63584279]
[1744203701006,0.0643639,104.54,104.52,0.06304279]
[1744203701507,4.6066,104.63,104.52,61.0670758]
[1744203701707,4.6066,104.63,104.54,51.44403301]
[1744203701911,14.1703,104.63,104.57,9.5685]
[1744203702103,1262.60535552,104.65,104.54,51.44403301]
[1744203702409,757.42535552,104.65,104.58,51.44403301]
[1744203702713,757.42535552,104.65,104.55,123.22403301]
[1744203702910,0.06652719,104.63,104.6,0.06316038]
[1744203703412,123.22403301,104.62,104.51,51.44403301]
[1744203703717,51.44403301,104.6,104.5,430.78]
[1744203703907,51.44403301,104.58,104.5,359.0]
[1744203704217,51.44403301,104.56,104.46,359.0]
[1744203704405,9.5709,104.55,104.47,51.44403301]
[1744203704713,0.061088,104.52,104.5,0.06833293]
[1744203704905,9.5678,104.58,104.53,9.5721]
[1744203705299,51.44403301,104.59,104.5,71.78]
[1744203705505,51.44403301,104.61,104.51,51.44403301]
[1744203705809,51.44403301,104.61,104.5,71.78]
[1744203706112,9.5686,104.57,104.54,0.06332268]
[1744203706302,0.0690514,104.57,104.54,0.06332268]
[1744203706611,0.0690514,104.57,104.56,9.5694]
[1744203706914,4.7334,104.63,104.55,123.24403301]
[1744203707107,4.7334,104.63,104.55,71.8]
[1744203707310,51.44403301,104.62,104.55,71.8]
[1744203707511,51.44403301,104.62,104.52,62.0]
[1744203707706,9.5663,104.6,104.52,62.0]
[1744203708005,4.7334,104.63,104.52,62.0]
[1744203708218,0.07070227,104.57,104.55,0.06676901]
[1744203708612,123.24403301,104.61,104.52,62.0]
[1744203708813,0.06267805,104.57,104.55,0.06935684]
[1744203709319,9.63167805,104.57,104.55,0.06935684]
[1744203709515,0.06267805,104.57,104.55,0.06935684]
[1744203709915,9.63197805,104.57,104.55,0.06935684]
[1744203710219,0.06267805,104.57,104.55,0.06935684]
[1744203710617,71.84267805,104.57,104.46,76.3405]
[1744203711013,9.5738,104.52,104.46,71.78]
[1744203711319,51.44403301,104.56,104.46,71.78]
[1744203711513,9.5727,104.53,104.49,9.5753]
[1744203711715,123.22403301,104.57,104.47,51.44403301]
[1744203711917,0.0605826,104.52,104.5,0.06598347]
[1744203712321,123.22403301,104.57,104.47,51.44403301]
[1744203712518,0.0725001,104.52,104.5,0.06039052]
[1744203712820,71.78,104.57,104.47,359.0]
[1744203713119,0.06839597,104.52,104.5,0.06729495]
[1744203713321,4.4729,104.59,104.49,51.44403301]
[1744203713914,71.8,104.61,104.51,51.44403301]
[1744203714212,71.8,104.61,104.51,123.24403301]
[1744203714613,0.06808375,104.57,104.55,0.07231627]
[1744203714820,4.476,104.62,104.58,9.5672]
[1744203715014,2.401e-05,104.57,104.55,123.31015003]
[1744203715219,51.44403301,104.64,104.55,71.8]
[1744203715417,9.5673,104.59,104.55,81.3698]
[1744203715617,51.44403301,104.62,104.53,359.0]
[1744203715814,708.5667423,104.65,104.53,51.44403301]
[1744203716024,657.12270929,104.65,104.57,51.44403301]
[1744203716330,0.06585766,104.6,104.58,0.06636251]
[1744203716530,652.51620929,104.65,104.59,51.44403301]
[1744203716723,652.51620929,104.65,104.6,71.8]
[1744203716924,9.5644,104.62,104.58,9.5672]
[1744203717130,703.9602423,104.65,104.58,561.12849636]
[1744203717329,708.7624423,104.65,104.58,561.12849636]
[1744203717629,657.31840929,104.65,104.58,561.12849636]
[1744203717836,0.06386256,104.63,104.6,0.06147464]
[1744203718034,0.06386256,104.63,104.6,9.62677464]
[1744203718337,0.06386256,104.63,104.6,0.06147464]
[1744203719332,0.06386256,104.63,104.61,310.80637688]
[1744203719539,312.64777903,104.68,104.62,71.78]
[1744203719540,236.04557903,104.68,104.62,71.78]
[1744203719734,9.0763,104.72,104.62,122.79168149]
[1744203720129,9.0763,104.72,104.67,9.5588]
[1744203720336,60.52033301,104.72,104.62,122.79168149]
[1744203720732,0.06894424,104.68,104.67,9.5589]
[1744203720928,4.424e-05,104.68,104.67,9.5589]
[1744203721135,4.8419,104.76,104.67,71.76]
[1744203721445,56.28593301,104.76,104.67,71.76]
[1744203721832,51.44403301,104.74,104.66,259.44152995]
[1744203722335,4.8419,104.76,104.71,155.39705075]
[1744203722735,9.5539,104.73,104.71,155.39705075]
[1744203722942,0.06703349,104.75,104.72,0.06939771]
[1744203723737,3.349e-05,104.75,104.74,9.5529]
[1744203724234,9.55223349,104.75,104.72,9.62369771]
[1744203724437,3.349e-05,104.75,104.72,0.06939771]
[1744203724633,71.74003349,104.75,104.72,9.771e-05]
[1744203724948,9.5539,104.73,104.72,9.771e-05]
[1744203726044,3.349e-05,104.75,104.72,9.771e-05]
[1744203726540,9.5539,104.73,104.72,9.771e-05]
[1744203726741,3.349e-05,104.75,104.72,9.771e-05]
[1744203727140,9.5529,104.74,104.72,9.771e-05]
[1744203727344,3.349e-05,104.75,104.72,9.771e-05]
[1744203727637,9.5539,104.73,104.72,9.771e-05]
[1744203729047,60.99793301,104.73,104.72,9.771e-05]
[1744203729343,9.5539,104.73,104.72,9.771e-05]
[1744203730332,9.5581,104.69,104.63,71.72]
[1744203730538,51.44403301,104.71,104.68,9.558]
[1744203730737,51.44403301,104.77,104.66,51.44403301]
[1744203730942,13.934,104.79,104.68,51.44403301]
[1744203731150,13.934,104.79,104.75,9.5515]
[1744203731334,13.934,104.79,104.72,51.44403301]
[1744203731536,0.06427967,104.78,104.76,0.06868274]
[1744203732840,9.61397967,104.78,104.76,0.06868274]
[1744203733038,0.06427967,104.78,104.76,0.06868274]
[1744203733341,0.06427967,104.78,104.7,56.18813301]
[1744203733342,9.5557,104.71,104.68,368.5577]
[1744203733646,4.6418,104.77,104.68,51.44403301]
[1744203733847,122.26403301,104.8,104.7,51.44403301]
[1744203734439,51.51588469,104.76,104.74,0.06180596]
[1744203734640,0.07185168,104.76,104.66,359.0]
[1744203734845,0.07185168,104.76,104.75,9.552]
[1744203735137,122.26403301,104.8,104.7,51.44403301]
[1744203735341,70.82,104.8,104.76,9.5502]
[1744203735536,4.6418,104.81,104.7,410.44403301]
[1744203735742,0.06745645,104.79,104.77,0.07052701]
[1744203735938,9.5685,104.86,104.78,51.44403301]
[1744203736140,9.5685,104.86,104.75,481.26403301]
[1744203736342,9.5685,104.86,104.76,62.0]
[1744203736542,9.5452,104.83,104.8,9.547]
[1744203736741,9.5685,104.86,104.77,51.44403301]
[1744203736951,9.5445,104.84,104.76,62.0]
[1744203737249,9.5685,104.86,104.8,0.06236715]
[1744203737250,0.07130881,104.83,104.8,0.06236715]
[1744203737450,70.89130881,104.83,104.8,0.06236715]
[1744203737745,51.44403301,104.81,104.71,372.8285]
[1744203737948,9.5516,104.76,104.73,9.5534]
[1744203738255,4.5789,104.82,104.73,51.44403301]
[1744203738547,51.44403301,104.79,104.71,359.0]
[1744203738747,122.24403301,104.79,104.68,51.44403301]
[1744203738945,0.07250606,104.76,104.74,9.62308036]
[1744203739248,0.07250606,104.76,104.74,0.07018036]
[1744203739442,6.06e-06,104.76,104.74,0.07018036]
[1744203740151,6.06e-06,104.76,104.75,9.552]
[1744203741057,6.06e-06,104.76,104.74,0.07018036]
[1744203742853,6.06e-06,104.76,104.6,378.1306]
[1744203742854,102.88806602,104.75,104.6,378.1306]
[1744203743051,9.5591,104.68,104.64,9.5615]
[1744203743352,51.44403301,104.73,104.63,51.44403301]
[1744203743652,51.44403301,104.71,104.61,122.22403301]
[1744203744048,0.06747208,104.67,104.65,0.07219195]
[1744203744358,70.78,104.66,104.58,357.08177041]
[1744203744556,51.44403301,104.65,104.58,357.08177041]
[1744203744857,51.44403301,104.63,104.58,357.08177041]
[1744203745056,70.8,104.62,104.58,357.08177041]
[1744203745556,0.06946001,104.61,104.59,0.06581437]
[1744203745755,9.5657,104.6,104.59,0.06581437]
[1744203746455,9.5666,104.59,104.58,357.08177041]
[1744203746651,122.24403301,104.6,104.58,357.08177041]
[1744203746958,0.06946001,104.61,104.58,357.08177041]
[1744203747348,0.06946001,104.61,104.59,9.566]
[1744203747548,0.06946001,104.61,104.58,136.09388352]
[1744203747946,9.5666,104.59,104.58,136.09388352]
[1744203748150,80.4066,104.59,104.58,1e-08]
[1744203748349,70.84,104.59,104.52,153.03504446]
[1744203748552,9.5678,104.58,104.54,9.5706]
[1744203748754,70.84,104.59,104.52,153.03504446]
[1744203749144,56.02753301,104.6,104.52,153.03504446]
[1744203749459,0.07063568,104.57,104.55,0.06909888]
[1744203749756,51.44403301,104.6,104.52,153.03504446]
[1744203749957,51.44403301,104.6,104.55,0.07111584]
[1744203749958,0.06870271,104.57,104.55,0.07111584]
[1744203751457,0.06870271,104.57,104.56,9.5694]
[1744203752358,4.7831,104.63,104.56,9.56]
[1744203752555,4.8078,104.66,104.57,51.44403301]
[1744203753062,51.44403301,104.63,104.55,359.0]
[1744203753360,51.44403301,104.65,104.55,359.0]
[1744203753661,0.06526862,104.6,104.58,0.06977197]
[1744203754065,4.8078,104.66,104.55,51.44403301]
[1744203754255,0.06771914,104.6,104.58,0.06582551]
[1744203754567,51.44403301,104.65,104.55,51.44403301]
[1744203754761,9.024e-05,104.6,104.58,0.06871483]
[1744203754958,14.3686,104.66,104.62,9.5633]
[1744203755159,9.3666,104.67,104.59,122.30403301]
[1744203755367,13.00489881,104.7,104.59,122.30403301]
[1744203755567,13.00489881,104.7,104.61,51.44403301]
[1744203755965,0.06799715,104.67,104.64,0.06645439]
[1744203756468,122.37203016,104.67,104.64,0.06645439]
[1744203756651,9.5625,104.64,104.58,51.44403301]
[1744203756857,9.5625,104.64,104.56,51.44403301]
[1744203757355,51.44403301,104.66,104.55,439.3501]
[1744203757556,70.86,104.67,104.55,439.3501]
[1744203757557,51.44403301,104.64,104.55,429.86]
[1744203757871,0.0664348,104.61,104.58,0.06139113]
[1744203758366,0.07204974,104.61,104.58,0.06515543]
[1744203758969,0.07204974,104.61,104.6,9.5657]
[1744203759158,575.68,104.67,104.58,0.06515543]
[1744203759357,4.7539,104.69,104.59,51.44403301]
[1744203759561,4.7539,104.69,104.59,122.26403301]
[1744203759972,9.5598,104.67,104.64,9.5617]
[1744203760265,4.7539,104.69,104.6,4.556]
[1744203760462,0.07371903,104.67,104.64,0.06874716]
[1744203760867,51.44403301,104.66,104.64,0.06874716]
[1744203761058,9.5612,104.65,104.64,0.06874716]
[1744203761861,9.5607,104.66,104.64,0.06874716]
[1744203762062,51.44403301,104.66,104.64,4.716e-05]
[1744203762466,1.903e-05,104.67,104.64,4.716e-05]
[1744203762659,26.93759881,104.74,104.68,9.5578]
[1744203762860,9.5567,104.7,104.64,4.716e-05]
[1744203763067,51.44403301,104.71,104.63,4.651]
[1744203763267,51.44403301,104.71,104.63,14.2135]
[1744203763469,9.5607,104.66,104.63,9.5625]
[1744203763771,0.06261235,104.68,104.66,0.06200527]
[1744203764069,51.44403301,104.69,104.62,70.84]
[1744203764267,51.44403301,104.65,104.55,51.44403301]
[1744203764459,70.84,104.64,104.53,51.44403301]
[1744203764665,51.44403301,104.63,104.53,51.44403301]
[1744203764868,9.5653,104.61,104.58,9.5673]
[1744203765365,122.28403301,104.64,104.59,9.5666]
[1744203765573,0.06472571,104.61,104.58,0.06911536]
[1744203765769,0.06472571,104.61,104.55,62.0]
[1744203766063,0.06472571,104.61,104.58,0.06489095]
[1744203766468,0.06472571,104.61,104.6,9.5657]
[1744203767073,0.06472571,104.61,104.58,0.06489095]
[1744203767769,0.06472571,104.61,104.6,9.5657]
[1744203769377,9.2677,104.67,104.58,0.06489095]
[1744203769570,9.5617,104.65,104.58,0.06489095]
[1744203769872,9.5617,104.65,104.57,4.6526]
[1744203770073,9.5617,104.65,104.57,56.09663301]
[1744203770269,9.5623,104.64,104.57,56.09663301]
[1744203770471,0.07241474,104.62,104.6,0.0684965]
[1744203770879,9.5626,104.64,104.61,9.5646]
[1744203771066,0.06680113,104.62,104.61,9.5646]
[1744203771371,131.55173301,104.67,104.6,9.63248932]
[1744203771574,0.06726752,104.63,104.6,9.5652]
[1744203771771,0.06726752,104.63,104.62,0.06143195]
[1744203772371,9.5654,104.61,104.57,4.6526]
[1744203772683,51.44403301,104.61,104.54,4.8084]
[1744203772974,51.44403301,104.65,104.55,51.44403301]
[1744203773173,51.44403301,104.65,104.54,56.25243301]
[1744203773374,9.5654,104.61,104.54,56.25243301]
[1744203773564,0.06265895,104.61,104.58,0.06931664]
[1744203773760,120.44669196,104.61,104.58,0.06931664]
[1744203773962,9.5681,104.58,104.55,9.5697]
[1744203774178,51.44403301,104.59,104.51,9.2394]
[1744203774366,9.568,104.58,104.51,9.2394]
[1744203774569,120.38403301,104.61,104.51,9.2394]
[1744203775075,0.06928175,104.57,104.55,9.63641872]
[1744203775277,0.06928175,104.57,104.55,0.06681872]
[1744203776271,0.06928175,104.57,104.55,9.63671872]
[1744203776576,0.06928175,104.57,104.55,0.06681872]
[1744203776768,9.5694,104.56,104.5,4.6936]
[1744203776970,120.45331476,104.57,104.5,4.6936]
[1744203777270,9.5707,104.55,104.53,9.5721]
[1744203777468,120.38403301,104.57,104.5,4.6936]
[1744203777874,120.38403301,104.57,104.53,9.5719]
[1744203778076,0.07337388,104.55,104.53,9.5719]
[1744203778379,0.07337388,104.55,104.54,9.5712]
[1744203779779,9.304,104.6,104.52,69.02943699]
[1744203780171,9.5672,104.59,104.56,9.5689]
[1744203780370,68.96,104.61,104.52,68.96]
[1744203780575,68.96,104.61,104.53,51.44403301]
[1744203780775,68.96,104.61,104.52,427.96]
[1744203780976,69.20573182,104.62,104.56,0.06287194]
[1744203780977,0.06218285,104.58,104.56,0.06287194]
[1744203781175,8.285e-05,104.58,104.57,9.5685]
[1744203783582,8.285e-05,104.58,104.57,14.4455]
[1744203784289,8.285e-05,104.58,104.57,9.5685]
[1744203784577,8.285e-05,104.58,104.56,0.06287194]
[1744203784976,8.285e-05,104.58,104.57,9.5685]
[1744203785389,8.285e-05,104.58,104.56,0.06287194]
[1744203786185,9.56768285,104.58,104.56,9.63187194]
[1744203786383,8.285e-05,104.58,104.56,0.06287194]
[1744203786686,8.285e-05,104.58,104.56,9.63157194]
[1744203786884,8.285e-05,104.58,104.56,0.06287194]
[1744203787788,8.285e-05,104.58,104.56,9.63177194]
[1744203788086,8.285e-05,104.58,104.56,0.06287194]
[1744203788278,8.285e-05,104.58,104.57,9.5685]
[1744203788691,76.60008285,104.58,104.48,359.0]
[1744203788888,9.5697,104.56,104.48,359.0]
[1744203789280,9.5697,104.56,104.49,67.04]
[1744203789480,9.5704,104.55,104.49,67.04]
[1744203789682,67.04,104.58,104.49,67.04]
[1744203789883,0.06132605,104.53,104.51,9.63944883]
[1744203790087,118.48403301,104.58,104.51,9.5731]
[1744203790278,0.06102976,104.53,104.51,0.06594327]
[1744203790491,51.44403301,104.59,104.49,118.48403301]
[1744203790690,7.069e-05,104.53,104.51,0.06507594]
[1744203790888,7.069e-05,104.53,104.5,4.4778]
[1744203791193,51.44403301,104.57,104.5,4.4778]
[1744203791390,118.48403301,104.57,104.5,4.4778]
[1744203791595,9.569,104.57,104.5,4.4778]
[1744203791894,0.06213989,104.55,104.52,0.07234894]
[1744203792894,9.5712,104.54,104.52,0.07234894]
[1744203793279,9.63313989,104.55,104.52,0.07234894]
[1744203793489,0.06213989,104.55,104.52,0.07234894]
[1744203794293,0.06213989,104.55,104.53,9.5716]
[1744203794494,9.63243989,104.55,104.52,0.07234894]
[1744203794687,0.06213989,104.55,104.52,0.07234894]
[1744203794889,9.5717,104.54,104.52,0.07234894]
[1744203795286,0.06213989,104.55,104.52,0.07234894]
[1744203795490,9.5721,104.53,104.52,0.07234894]
[1744203795988,51.44403301,104.54,104.47,9.5771]
[1744203796296,51.44403301,104.56,104.45,118.50403301]
[1744203796793,51.44403301,104.56,104.47,51.44403301]
[1744203796987,9.5725,104.53,104.5,9.5741]
[1744203797191,0.06834413,104.53,104.5,0.07131102]
[1744203797590,9.574,104.51,104.5,0.07131102]
[1744203797991,118.50403301,104.52,104.43,4.5002]
[1744203798291,51.44403301,104.48,104.4,359.0]
[1744203798497,118.50403301,104.48,104.38,55.94423301]
[1744203798695,67.06,104.48,104.39,51.44403301]
[1744203798897,67.06,104.48,104.4,62.0]
[1744203799196,0.07236278,104.45,104.44,9.5804]
[1744203799699,0.0671359,104.46,104.43,0.06551113]
[1744203799998,0.0671359,104.46,104.41,118.50403301]
[1744203800184,0.0671359,104.46,104.43,0.07330386]
[1744203800787,0.0671359,104.46,104.43,9.65420386]
[1744203801096,0.0671359,104.46,104.43,0.07330386]
[1744203802303,51.51116891,104.46,104.43,0.07330386]
[1744203802596,0.0671359,104.46,104.43,0.07330386]
[1744203803390,0.0671359,104.46,104.45,9.5795]
[1744203804197,0.0671359,104.46,104.43,0.07330386]
[1744203804995,9.5801,104.45,104.43,0.07330386]
[1744203805192,0.0671359,104.46,104.44,9.5803]
[1744203805503,0.0671359,104.46,104.43,0.07330386]
[1744203806803,0.0671359,104.46,104.45,9.5795]
[1744203807104,0.0671359,104.46,104.43,0.07330386]
[1744203807299,0.0671359,104.46,104.43,9.65400386]
[1744203807502,0.0671359,104.46,104.43,0.07330386]
[1744203807707,51.44403301,104.45,104.35,359.0]
[1744203808000,51.44403301,104.43,104.35,359.0]
[1744203808198,51.44403301,104.43,104.34,589.9381]
[1744203808399,51.44403301,104.43,104.39,9.5842]
[1744203808706,9.5832,104.41,104.39,9.5842]
[1744203808909,9.5832,104.41,104.4,0.06937472]
[1744203809205,9.5826,104.42,104.34,589.9381]
[1744203809502,55.98413301,104.43,104.39,0.07110999]
[1744203809800,65.56623301,104.43,104.39,0.07110999]
[1744203810005,0.06865417,104.42,104.4,9.5837]
[1744203810206,0.06865417,104.42,104.39,0.07110999]
[1744203810608,0.06865417,104.42,104.4,9.5836]
[1744203810811,0.06865417,104.42,104.39,0.07110999]
[1744203811697,9.5832,104.41,104.39,0.07110999]
[1744203812208,9.584,104.4,104.39,0.07110999]
[1744203812503,51.44403301,104.41,104.32,359.0]
[1744203812808,55.98413301,104.43,104.33,19.1807]
[1744203813311,9.5823,104.42,104.4,9.5838]
[1744203813613,0.06264884,104.42,104.4,0.06814882]
[1744203814009,0.06264884,104.42,104.41,9.5831]
[1744203814404,0.06264884,104.42,104.4,0.06814882]
[1744203814909,61.08668185,104.42,104.33,4.7678]
[1744203815117,65.28,104.43,104.32,359.0]
[1744203815118,51.44403301,104.4,104.32,359.0]
[1744203815306,51.44403301,104.4,104.3,4.7678]
[1744203815507,9.5844,104.4,104.32,51.44403301]
[1744203815711,51.44403301,104.4,104.31,127.28]
[1744203815916,51.44403301,104.4,104.31,65.28]
[1744203816104,0.06290355,104.37,104.36,9.5877]
[1744203816412,51.44403301,104.42,104.32,51.44403301]
[1744203816614,0.06753617,104.38,104.37,9.5861]
[1744203816807,51.44403301,104.42,104.32,51.44403301]
[1744203817111,0.07136731,104.39,104.36,0.06264878]
[1744203817509,6.731e-05,104.39,104.38,9.5859]
[1744203819009,6.731e-05,104.39,104.38,71.5859]
[1744203819813,6.731e-05,104.39,104.38,81.1659]
[1744203820312,6.731e-05,104.39,104.38,71.5859]
[1744203820715,6.731e-05,104.39,104.38,81.1659]
[1744203821015,6.731e-05,104.39,104.38,9.5859]
[1744203824005,6.731e-05,104.39,104.38,71.5859]
[1744203826620,6.731e-05,104.39,104.38,9.5859]
[1744203827718,14.0217,104.48,104.45,9.5789]
[1744203827910,4.4441,104.48,104.39,51.55357543]
[1744203828311,9.579,104.46,104.43,9.5808]
[1744203828620,56.46369525,104.48,104.39,51.55357543]
[1744203828815,56.46369525,104.48,104.44,9.5799]
[1744203829119,51.61818411,104.45,104.42,0.06694049]
[1744203829314,9.5832,104.41,104.38,9.5851]
[1744203829515,9.5832,104.41,104.36,4.5922]
[1744203829716,0.06605621,104.41,104.38,0.07190731]
[1744203829915,9.5845,104.4,104.38,0.07190731]
[1744203830318,51.62212869,104.41,104.38,0.07190731]
[1744203830621,9.585,104.39,104.38,0.07190731]
[1744203831222,0.06855326,104.41,104.38,0.07190731]
[1744203831920,51.62212869,104.41,104.38,0.07190731]
[1744203832116,9.5845,104.4,104.38,0.07190731]
[1744203832314,51.62212869,104.41,104.38,0.07190731]
[1744203832519,51.62212869,104.41,104.31,122.21137543]
[1744203832821,9.5863,104.38,104.36,9.5876]
[1744203833022,51.55357543,104.39,104.32,62.0]
[1744203833221,9.5865,104.38,104.35,9.5879]
[1744203833527,9.5865,104.38,104.32,62.0]
[1744203833710,9.65115899,104.38,104.35,0.07066914]
[1744203833922,0.06465899,104.38,104.35,0.07066914]
[1744203834411,0.06465899,104.38,104.35,9.65876914]
[1744203834613,0.06465899,104.38,104.35,0.07066914]
[1744203834917,0.06465899,104.38,104.35,9.65876914]
[1744203835122,0.06465899,104.38,104.35,0.07066914]
[1744203838015,0.06465899,104.38,104.37,9.5868]
[1744203838725,0.06465899,104.38,104.35,0.07066914]
[1744203840933,0.06465899,104.38,104.37,9.5868]
[1744203841740,5.899e-05,104.38,104.37,9.5868]
[1744203844129,5.899e-05,104.38,104.35,0.07066914]
[1744203844530,9.5868,104.37,104.35,0.07066914]
[1744203844735,5.899e-05,104.38,104.35,0.07066914]
[1744203845239,9.5868,104.37,104.35,0.07066914]
[1744203845438,41.32411408,104.37,104.35,9.65916914]
[1744203845740,41.32411408,104.37,104.35,0.07066914]
[1744203846041,9.5877,104.36,104.35,0.07066914]
[1744203846240,31.73731408,104.37,104.35,0.07066914]
[1744203846540,5.899e-05,104.38,104.35,0.07066914]
[1744203847233,5.899e-05,104.38,104.36,9.5871]
[1744203847434,9.58605899,104.38,104.36,9.5871]
[1744203848042,5.899e-05,104.38,104.35,0.07066914]
[1744203850142,5.899e-05,104.38,104.37,9.5868]
[1744203851034,5.78e-05,104.4,104.39,9.585]
[1744203851241,80.09774645,104.42,104.39,31.73731408]
[1744203851535,139.15811967,104.43,104.39,390.73731408]
[1744203851738,245.96337461,104.44,104.42,31.73731408]
[1744203851932,325.84334326,104.45,104.41,59.74]
[1744203852138,13.28348137,104.43,104.39,359.0]
[1744203852339,13.28348137,104.43,104.42,0.07320256]
[1744203852542,13.28348137,104.43,104.42,9.65500256]
[1744203852736,0.06979339,104.44,104.42,0.07320256]
[1744203853332,0.06979339,104.44,104.37,62.0]
[1744203853333,31.80710747,104.44,104.37,62.0]
[1744203853637,4.4817,104.43,104.37,62.0]
[1744203853838,9.5827,104.42,104.4,9.5837]
[1744203854439,14.0634,104.43,104.37,62.0]
[1744203854643,0.06282499,104.42,104.4,0.06634408]
[1744203855236,31.80013907,104.42,104.4,0.06634408]
[1744203855637,41.38283907,104.42,104.4,0.06634408]
[1744203855944,0.06282499,104.42,104.4,0.06634408]
[1744203856433,0.06282499,104.42,104.35,359.0]
[1744203856634,9.5845,104.4,104.38,9.5858]
[1744203857646,9.585,104.39,104.38,0.07214995]
[1744203858141,31.73731408,104.38,104.32,9.5908]
[1744203858446,96.05401408,104.41,104.32,31.73731408]
[1744203858647,31.73731408,104.39,104.31,59.74]
[1744203859142,9.5875,104.37,104.34,9.5891]
[1744203859344,0.06253079,104.36,104.34,0.0421566]
[1744203859648,9.65083079,104.36,104.34,0.0421566]
[1744203860550,9.5886,104.35,104.34,0.0421566]
[1744203860744,9.5886,104.35,104.32,9.591]
[1744203861245,9.65073079,104.36,104.28,59.74]
[1744203861446,31.73731408,104.4,104.29,31.73731408]
[1744203861648,9.5866,104.38,104.29,390.73731408]
[1744203861848,0.07040963,104.36,104.34,9.5887]
[1744203862044,0.07040963,104.36,104.29,390.73731408]
[1744203862250,9.5866,104.38,104.29,390.73731408]
[1744203862448,0.07122712,104.34,104.33,9.5905]
[1744203862651,9.5866,104.38,104.29,390.73731408]
[1744203862854,0.06995859,104.35,104.29,390.73731408]
[1744203863556,0.06995859,104.35,104.31,31.73731408]
[1744203863745,0.06995859,104.35,104.32,59.74]
[1744203864051,0.06995859,104.35,104.34,9.5896]
[1744203865249,5.859e-05,104.35,104.34,9.5896]
[1744203865439,4.5767,104.41,104.34,368.58]